fUSD/lending_fUSD_20260202
["ID","MTS","AMOUNT","RATE_DAILY","PERIOD"]
[404346783,1770070287222,-272.64107444,0.00043287,120]
[404346784,1770070287234,-500.0,0.00043287,120]
[404346785,1770070287245,-500.0,0.00043287,120]
[404346786,1770070287256,-500.0,0.00043287,120]
[404346787,1770070287266,-500.0,0.00043287,120]
[404346788,1770070287277,-513.23679786,0.00043287,120]
[404346789,1770070287286,-512.81248457,0.00043287,120]
[404346790,1770070287295,-540.28327069,0.00043287,120]
[404346791,1770070287304,-565.65662405,0.00043287,120]
[404346792,1770070287315,-500.0,0.00043287,120]
[404346793,1770070287326,-500.0,0.00043287,120]
[404346794,1770070287336,-500.0,0.00043287,120]
[404346795,1770070287345,-500.0,0.00043287,120]
[404346796,1770070287354,-500.0,0.00043287,120]
[404346797,1770070287364,-500.0,0.00043287,120]
[404346798,1770070287374,-500.0,0.00043287,120]
[404346799,1770070287384,-500.0,0.00043287,120]
[404346800,1770070287394,-512.1989319,0.00043287,120]
[404346801,1770070287403,-500.0,0.00043287,120]
[404346802,1770070287413,-500.0,0.00043287,120]
[404346803,1770070287423,-500.0,0.00043287,120]
[404346804,1770070287432,-500.0,0.00043287,120]
[404346805,1770070287441,-500.0,0.00043287,120]
[404346806,1770070287450,-546.19799667,0.00043287,120]
[404346807,1770070287459,-532.56614991,0.00043287,120]
[404346808,1770070287469,-500.0,0.00043287,120]
[404346809,1770070287478,-500.0,0.00043287,120]
[404346810,1770070287487,-518.67088895,0.00043287,120]
[404346811,1770070287498,-498.69333712,0.00043287,120]
[404346812,1770070287507,-513.36270987,0.00043287,120]
[404346813,1770070287517,-516.77754613,0.00043287,120]
[404346814,1770070287526,-500.07210663,0.00043287,120]
[404346815,1770070287535,-530.41568318,0.00043287,120]
[404346816,1770070287544,-500.0,0.00043287,120]
[404346817,1770070287553,-500.0,0.00043287,120]
[404346818,1770070287562,-508.08542985,0.00043287,120]
[404346819,1770070287571,-511.78343819,0.00043287,120]
[404346820,1770070287580,-500.0,0.00043287,120]
[404346821,1770070287589,-522.16790393,0.00043287,120]
[404346822,1770070287599,-500.0,0.00043287,120]
[404346823,1770070287608,-500.0,0.00043287,120]
[404346824,1770070287617,-500.0,0.00043287,120]
[404346825,1770070287627,-500.0,0.00043287,120]
[404346826,1770070287637,-500.0,0.00043287,120]
[404346827,1770070287646,-500.0,0.00043287,120]
[404346828,1770070287655,-500.0,0.00043287,120]
[404346829,1770070287665,-500.0,0.00043287,120]
[404346830,1770070287674,-500.0,0.00043287,120]
[404346831,1770070287683,-500.0,0.00043287,120]
[404346832,1770070287692,-500.0,0.00043287,120]
[404346833,1770070287702,-500.0,0.00043287,120]
[404346834,1770070287711,-500.0,0.00043287,120]
[404346835,1770070287722,-500.0,0.00043287,120]
[404346836,1770070287732,-500.0,0.00043287,120]
[404346837,1770070287744,-507.47250992,0.00043287,120]
[404346838,1770070287753,-500.0,0.00043287,120]
[404346839,1770070287762,-500.0,0.00043287,120]
[404346840,1770070287771,-503.14688835,0.00043287,120]
[404346841,1770070287780,-500.0,0.00043287,120]
[404346842,1770070287790,-500.0,0.00043287,120]
[404346843,1770070287799,-500.0,0.00043287,120]
[404346844,1770070287808,-500.0,0.00043287,120]
[404346845,1770070287818,-500.0,0.00043287,120]
[404346846,1770070287828,-500.0,0.00043287,120]
[404346847,1770070287837,-500.0,0.00043287,120]
[404346848,1770070287846,-502.14272153,0.00043287,120]
[404346849,1770070287855,-500.0,0.00043287,120]
[404346850,1770070287864,-500.0,0.00043287,120]
[404346851,1770070287874,-500.0,0.00043287,120]
[404346852,1770070287883,-500.0,0.00043287,120]
[404346853,1770070287892,-500.0,0.00043287,120]
[404346854,1770070287901,-500.0,0.00043287,120]
[404346855,1770070287911,-500.0,0.00043287,120]
[404346856,1770070287920,-500.0,0.00043287,120]
[404346857,1770070287929,-500.0,0.00043287,120]
[404346858,1770070287938,-500.0,0.00043287,120]
[404346859,1770070287948,-500.0,0.00043287,120]
[404346860,1770070287957,-500.0,0.00043287,120]
[404346861,1770070287966,-500.0,0.00043287,120]
[404346862,1770070287975,-500.0,0.00043287,120]
[404346863,1770070287984,-500.0,0.00043287,120]
[404346864,1770070287994,-500.0,0.00043287,120]
[404346865,1770070288003,-500.0,0.00043287,120]
[404346866,1770070288012,-500.0,0.00043287,120]
[404346867,1770070288022,-500.0,0.00043287,120]
[404346868,1770070288031,-500.0,0.00043287,120]
[404346869,1770070288041,-500.0,0.00043287,120]
[404346870,1770070288051,-503.86425817,0.00043287,120]
[404346871,1770070288060,-500.0,0.00043287,120]
[404346872,1770070288070,-505.312797,0.00043287,120]
[404346873,1770070288080,-505.19276639,0.00043287,120]
[404346874,1770070288088,-500.0,0.00043287,120]
[404346875,1770070288098,-500.0,0.00043287,120]
[404346876,1770070288107,-500.0,0.00043287,120]
[404346877,1770070288116,-500.0,0.00043287,120]
[404346878,1770070288125,-500.0,0.00043287,120]
[404346879,1770070288135,-500.0,0.00043287,120]
[404346880,1770070288143,-500.0,0.00043287,120]
[404346881,1770070288152,-500.0,0.00043287,120]
[404346882,1770070288162,-500.0,0.00043287,120]
[404346883,1770070288171,-500.0,0.00043287,120]
[404346884,1770070288180,-500.0,0.00043287,120]
[404346885,1770070288189,-500.0,0.00043287,120]
[404346886,1770070288199,-500.0,0.00043287,120]
[404346887,1770070288208,-500.0,0.00043287,120]
[404346888,1770070288217,-500.0,0.00043287,120]
[404346889,1770070288226,-500.0,0.00043287,120]
[404346890,1770070288256,-500.0,0.00043287,120]
[404346891,1770070288267,-500.0,0.00043287,120]
[404346892,1770070288277,-500.0,0.00043287,120]
[404346893,1770070288287,-500.0,0.00043287,120]
[404346894,1770070288296,-527.22576228,0.00043287,120]
[404346895,1770070288306,-500.0,0.00043287,120]
[404346896,1770070288316,-509.25395794,0.00043287,120]
[404346897,1770070288325,-500.0,0.00043287,120]
[404346898,1770070288335,-500.0,0.00043287,120]
[404346899,1770070288344,-500.0,0.00043287,120]
[404346900,1770070288353,-500.0,0.00043287,120]
[404346901,1770070288362,-500.0,0.00043287,120]
[404346902,1770070288371,-500.0,0.00043287,120]
[404346903,1770070288381,-500.0,0.00043287,120]
[404346904,1770070288391,-528.19120928,0.00043287,120]
[404346905,1770070288401,-500.0,0.00043287,120]
[404346906,1770070288410,-500.0,0.00043287,120]
[404346907,1770070288419,-523.03406333,0.00043287,120]
[404346908,1770070288428,-500.0,0.00043287,120]
[404346909,1770070288437,-500.0,0.00043287,120]
[404346910,1770070288446,-500.0,0.00043287,120]
[404346911,1770070288455,-511.50857644,0.00043287,120]
[404346912,1770070288464,-500.0,0.00043287,120]
[404346913,1770070288473,-500.0,0.00043287,120]
[404346914,1770070288482,-500.0,0.00043287,120]
[404346915,1770070288492,-500.0,0.00043287,120]
[404346916,1770070288501,-500.0,0.00043287,120]
[404346917,1770070288511,-500.0,0.00043287,120]
[404346918,1770070288520,-500.0,0.00043287,120]
[404346919,1770070288529,-520.34984779,0.00043287,120]
[404346920,1770070288539,-500.0,0.00043287,120]
[404346921,1770070288548,-517.27804378,0.00043287,120]
[404346922,1770070288558,-500.0,0.00043287,120]
[404346923,1770070288567,-500.0,0.00043287,120]
[404346924,1770070288576,-500.0,0.00043287,120]
[404346925,1770070288585,-500.0,0.00043287,120]
[404346926,1770070288596,-500.0,0.00043287,120]
[404346927,1770070288605,-500.0,0.00043287,120]
[404346928,1770070288615,-500.0,0.00043287,120]
[404346929,1770070288625,-500.0,0.00043287,120]
[404346930,1770070288634,-500.0,0.00043287,120]
[404346931,1770070288643,-500.0,0.00043287,120]
[404346932,1770070288653,-500.0,0.00043287,120]
[404346933,1770070288662,-500.0,0.00043287,120]
[404346934,1770070288671,-500.0,0.00043287,120]
[404346935,1770070288681,-500.0,0.00043287,120]
[404346936,1770070288690,-500.0,0.00043287,120]
[404346937,1770070288700,-500.0,0.00043287,120]
[404346938,1770070288710,-500.0,0.00043287,120]
[404346939,1770070288719,-500.0,0.00043287,120]
[404346940,1770070288728,-500.0,0.00043287,120]
[404346941,1770070288739,-504.112337,0.00043287,120]
[404346942,1770070288749,-500.0,0.00043287,120]
[404346943,1770070288758,-500.0,0.00043287,120]
[404346944,1770070288768,-500.0,0.00043287,120]
[404346945,1770070288777,-500.0,0.00043287,120]
[404346946,1770070288786,-500.0,0.00043287,120]
[404346947,1770070288795,-500.0,0.00043287,120]
[404346948,1770070288804,-507.90103611,0.00043287,120]
[404346949,1770070288813,-500.0,0.00043287,120]
[404346950,1770070288821,-516.67519619,0.00043287,120]
[404346951,1770070288830,-517.61237953,0.00043287,120]
[404346952,1770070288839,-500.0,0.00043287,120]
[404346953,1770070288847,-500.0,0.00043287,120]
[404346954,1770070288856,-500.0,0.00043287,120]
[404346955,1770070288865,-500.0,0.00043287,120]
[404346956,1770070288873,-500.0,0.00043287,120]
[404346957,1770070288882,-506.22222918,0.00043287,120]
[404346958,1770070288891,-556.84694492,0.00043287,120]
[404346959,1770070288900,-500.0,0.00043287,120]
[404346960,1770070288910,-500.0,0.00043287,120]
[404346961,1770070288919,-505.02428754,0.00043287,120]
[404346962,1770070288929,-541.59024784,0.00043287,120]
[404346963,1770070288938,-500.0,0.00043287,120]
[404346964,1770070288948,-497.87011175,0.00043287,120]
[404346965,1770070288958,-544.72612572,0.00043287,120]
[404346966,1770070288967,-524.74208747,0.00043287,120]
[404346967,1770070288977,-524.90448403,0.00043287,120]
[404346968,1770070288987,-500.0,0.00043287,120]
[404346969,1770070288996,-525.96532927,0.00043287,120]
[404346970,1770070289005,-500.0,0.00043287,120]
[404346971,1770070289017,-500.0,0.00043287,120]
[404346972,1770070289026,-500.0,0.00043287,120]
[404346973,1770070289037,-500.0,0.00043287,120]
[404346974,1770070289047,-500.0,0.00043287,120]
[404346975,1770070289058,-500.0,0.00043287,120]
[404346976,1770070289067,-508.06327204,0.00043287,120]
[404346977,1770070289076,-328.60189991,0.00043287,120]
[404346978,1770070289085,-500.0,0.00043287,120]
[404346979,1770070289095,-500.0,0.00043287,120]
[404346980,1770070289104,-500.0,0.00043287,120]
[404346981,1770070289113,-500.0,0.00043287,120]
[404346982,1770070289122,-500.0,0.00043287,120]
[404346983,1770070289132,-508.19692631,0.00043287,120]
[404346984,1770070289141,-500.0,0.00043287,120]
[404346985,1770070289151,-500.0,0.00043287,120]
[404346986,1770070289160,-500.0,0.00043287,120]
[404346987,1770070289170,-511.98473096,0.00043287,120]
[404346988,1770070289179,-500.0,0.00043287,120]
[404346989,1770070289188,-500.0,0.00043287,120]
[404346990,1770070289198,-500.0,0.00043287,120]
[404346991,1770070289207,-500.0,0.00043287,120]
[404346992,1770070289217,-500.0,0.00043287,30]
[404346993,1770070289228,-500.0,0.00043287,120]
[404346994,1770070289248,-500.0,0.00043287,30]
[404346995,1770070289257,-500.0,0.00043287,120]
[404346996,1770070289265,-500.0,0.00043287,30]
[404346997,1770070289275,-500.0,0.00043287,120]
[404346998,1770070289285,-500.0,0.00043287,30]
[404346999,1770070289294,-500.0,0.00043287,120]
[404347000,1770070289304,-500.0,0.00043287,30]
[404347001,1770070289313,-500.0,0.00043287,120]
[404347002,1770070289323,-500.0,0.00043287,30]
[404347003,1770070289332,-500.0,0.00043287,120]
[404347004,1770070289342,-500.0,0.00043287,30]
[404347005,1770070289351,-500.0,0.00043287,120]
[404347006,1770070289361,-500.0,0.00043287,30]
[404347007,1770070289372,-512.75038802,0.00043287,120]
[404347008,1770070289381,-500.0,0.00043287,30]
[404347009,1770070289391,-541.71057473,0.00043287,120]
[404347010,1770070289400,-500.0,0.00043287,30]
[404347011,1770070289410,-505.55364513,0.00043287,120]
[404347012,1770070289419,-500.0,0.00043287,30]
[404347013,1770070289429,-500.0,0.00043287,30]
[404347014,1770070289438,-500.0,0.00043287,30]
[404347015,1770070289448,-500.0,0.00043287,30]
[404347016,1770070289457,-510.94507663,0.00043287,30]
[404347017,1770070289466,-500.0,0.00043287,120]
[404347018,1770070289476,-507.51188226,0.00043287,120]
[404347019,1770070289485,-543.63000319,0.00043287,120]
[404347020,1770070289495,-527.7495714,0.00043287,120]
[404347021,1770070289505,-500.0,0.00043287,120]
[404347022,1770070289515,-414.87355121,0.00043287,120]
[404347023,1770070289525,-510.37033723,0.00043287,120]
[404347024,1770070289534,-569.65888288,0.00043287,120]
[404347025,1770070289545,-500.0,0.00043287,120]
[404347026,1770070289554,-531.62110741,0.00043287,120]
[404347027,1770070289564,-500.0,0.00043287,120]
[404347028,1770070289574,-500.0,0.00043287,120]
[404347029,1770070289583,-512.05754119,0.00043287,120]
[404347030,1770070289593,-516.37913007,0.00043287,120]
[404347031,1770070289602,-500.0,0.00043287,120]
[404347032,1770070289613,-538.55355715,0.00043287,120]
[404347033,1770070289622,-500.0,0.00043287,120]
[404347034,1770070289631,-500.0,0.00043287,120]
[404347035,1770070289641,-507.69939176,0.00043287,120]
[404347036,1770070289650,-521.21415657,0.00043287,120]
[404347037,1770070289659,-500.0,0.00043287,120]
[404347038,1770070289668,-521.23810722,0.00043287,120]
[404347039,1770070289678,-500.0,0.00043287,120]
[404347040,1770070289687,-500.0,0.00043287,120]
[404347041,1770070289697,-500.0,0.00043287,120]
[404347042,1770070289706,-500.0,0.00043287,120]
[404347043,1770070289715,-535.0476437,0.00043287,120]
[404347044,1770070289724,-500.0,0.00043287,120]
[404347045,1770070289734,-500.0,0.00043287,120]
[404347046,1770070289743,-545.17953988,0.00043287,120]
[404347047,1770070289758,-500.0,0.00043287,120]
[404347048,1770070289767,-500.0,0.00043287,120]
[404347049,1770070289778,-500.0,0.00043287,120]
[404347050,1770070289787,-573.75551429,0.00043287,120]
[404347051,1770070289797,-500.0,0.00043287,120]
[404347052,1770070289807,-500.0,0.00043287,120]
[404347053,1770070289815,-500.0,0.00043287,120]
[404347054,1770070289825,-500.0,0.00043287,120]
[404347055,1770070289835,-508.89568954,0.00043287,120]
[404347056,1770070289844,-500.0,0.00043287,120]
[404347057,1770070289854,-511.37417981,0.00043287,120]
[404347058,1770070289864,-500.0,0.00043287,120]
[404347059,1770070289877,-500.0,0.00043287,120]
[404347060,1770070289888,-518.65024778,0.00043287,120]
[404347061,1770070289897,-500.0,0.00043287,120]
[404347062,1770070289907,-500.0,0.00043287,120]
[404347063,1770070289916,-500.0,0.00043287,120]
[404347064,1770070289925,-500.0,0.00043287,120]
[404347065,1770070289934,-500.0,0.00043287,120]
[404347066,1770070289944,-513.3536353,0.00043287,120]
[404347067,1770070289955,-525.53928519,0.00043287,120]
[404347068,1770070289964,-519.49873525,0.00043287,120]
[404347069,1770070289974,-587.54954871,0.00043287,120]
[404347070,1770070289984,-500.0,0.00043287,120]
[404347071,1770070289994,-500.0,0.00043287,120]
[404347072,1770070290003,-500.0,0.00043287,120]
[404347073,1770070290012,-500.0,0.00043287,120]
[404347074,1770070290021,-500.0,0.00043287,120]
[404347075,1770070290030,-515.14902426,0.00043287,120]
[404347076,1770070290040,-500.0,0.00043287,120]
[404347077,1770070290050,-508.18994771,0.00043287,120]
[404347078,1770070290061,-500.0,0.00043287,120]
[404347079,1770070290071,-600.02,0.00043287,120]
[404347080,1770070290080,-500.0,0.00043287,120]
[404347081,1770070290090,-500.0,0.00043287,120]
[404347082,1770070290100,-507.00647345,0.00043287,120]
[404347083,1770070290109,-500.0,0.00043287,120]
[404347084,1770070290119,-504.7123596,0.00043287,120]
[404347085,1770070290130,-509.06338395,0.00043287,120]
[404347086,1770070290139,-500.0,0.00043287,120]
[404347087,1770070290148,-203.01,0.00043287,120]
[404347088,1770070290159,-520.2923573,0.00043287,120]
[404347089,1770070290169,-500.0,0.00043287,120]
[404347090,1770070290179,-500.0,0.00043287,120]
[404347091,1770070290188,-500.0,0.00043287,120]
[404347092,1770070290199,-500.0,0.00043287,120]
[404347093,1770070290209,-500.0,0.00043287,120]
[404347094,1770070290219,-518.86089576,0.00043287,120]
[404347095,1770070290233,-517.69274609,0.00043287,120]
[404347096,1770070290244,-526.94326691,0.00043287,120]
[404347097,1770070290259,-500.0,0.00043287,120]
[404347098,1770070290269,-500.0,0.00043287,120]
[404347099,1770070290281,-154.51439679,0.00043287,120]
[404347100,1770070290291,-513.44419833,0.00043287,120]
[404347101,1770070290301,-519.23600176,0.00043287,120]
[404347102,1770070290311,-574.28695836,0.00043287,120]
[404347103,1770070290320,-500.0,0.00043287,120]
[404347104,1770070290329,-511.09226853,0.00043287,120]
[404347105,1770070290339,-500.0,0.00043287,120]
[404347106,1770070290348,-210.40250643,0.00043287,120]
[404347107,1770070290357,-500.0,0.00043287,120]
[404347108,1770070290367,-500.0,0.00043287,120]
[404347109,1770070290377,-500.0,0.00043287,120]
[404347110,1770070290386,-500.0,0.00043287,120]
[404347111,1770070290395,-500.0,0.00043287,120]
[404347112,1770070290405,-500.0,0.00043287,120]
[404347113,1770070290415,-500.0,0.00043287,120]
[404347114,1770070290424,-500.0,0.00043287,120]
[404347115,1770070290434,-500.0,0.00043287,120]
[404347116,1770070290443,-500.0,0.00043287,120]
[404347117,1770070290453,-500.0,0.00043287,120]
[404347118,1770070290462,-500.0,0.00043287,120]
[404347119,1770070290471,-507.99282988,0.00043287,120]
[404347120,1770070290481,-500.0,0.00043287,120]
[404347121,1770070290490,-500.0,0.00043287,120]
[404347122,1770070290499,-500.0,0.00043287,120]
[404347123,1770070290509,-500.0,0.00043287,120]
[404347124,1770070290519,-500.0,0.00043287,120]
[404347125,1770070290528,-500.0,0.00043287,120]
[404347126,1770070290538,-530.88776583,0.00043287,120]
[404347127,1770070290548,-500.0,0.00043287,120]
[404347128,1770070290557,-500.0,0.00043287,120]
[404347129,1770070290567,-500.0,0.00043287,120]
[404347130,1770070290577,-500.0,0.00043287,120]
[404347131,1770070290587,-292.15764396,0.00043287,120]
[404347132,1770070290597,-193.16176411,0.00043287,120]
[404347133,1770070290771,-503.59517421,0.00043287,120]
[404347134,1770070290782,-533.58687954,0.00043287,120]
[404347135,1770070290792,-519.13705642,0.00043287,120]
[404347136,1770070290802,-599.28028331,0.00043287,120]
[404347137,1770070290811,-507.27299421,0.00043287,14]
[404347138,1770070290821,-500.0,0.00043287,120]
[404347139,1770070290830,-500.0,0.00043287,120]
[404347140,1770070290839,-500.0,0.00043287,120]
[404347141,1770070290848,-441.91505185,0.00043287,120]
[404347142,1770070290858,-500.0,0.00043287,120]
[404347143,1770070290867,-500.0,0.00043287,120]
[404347144,1770070290876,-500.0,0.00043287,120]
[404347145,1770070290887,-502.77112943,0.00043287,120]
[404347146,1770070290896,-582.09605173,0.00043287,30]
[404347147,1770070290905,-524.80389327,0.00043287,120]
[404347148,1770070290914,-641.88821966,0.00043287,120]
[404347149,1770070290923,-507.67939022,0.00043287,120]
[404347150,1770070290932,-511.93261301,0.00043287,120]
[404347151,1770070290941,-518.47908583,0.00043287,120]
[404347152,1770070290951,-614.90541169,0.00043287,120]
[404347153,1770070290960,-500.0,0.00043287,90]
[404347154,1770070290969,-366.81550332,0.00043287,90]
[404347155,1770070290978,-509.1584832,0.00043287,120]
[404347156,1770070290987,-541.68749217,0.00043287,120]
[404347157,1770070290996,-534.82396277,0.00043287,120]
[404347158,1770070291005,-522.72236817,0.00043287,120]
[404347159,1770070291015,-512.79008936,0.00043287,120]
[404347160,1770070291024,-526.45037812,0.00043287,120]
[404347161,1770070291033,-500.0,0.00043287,120]
[404347162,1770070291043,-500.0,0.00043287,120]
[404347163,1770070291052,-555.73746653,0.00043287,120]
[404347164,1770070291061,-540.24880581,0.00043287,120]
[404347165,1770070291070,-160.42107796,0.00043287,120]
[404347166,1770070291079,-530.10672218,0.00043287,120]
[404347167,1770070291088,-518.8843116,0.00043287,120]
[404347168,1770070291097,-531.3277883,0.00043287,120]
[404347169,1770070291106,-516.96658849,0.00043287,120]
[404347170,1770070291115,-527.31552472,0.00043287,120]
[404347171,1770070291124,-542.28871231,0.00043287,60]
[404347172,1770070291134,-607.29754884,0.00043287,120]
[404347173,1770070291142,-500.0,0.00043287,120]
[404347174,1770070291152,-501.22351566,0.00043287,120]
[404347175,1770070291160,-423.94528019,0.00043287,120]
[404347176,1770070291169,-567.67910227,0.00043287,120]
[404347177,1770070291178,-533.59818552,0.00043287,120]
[404347178,1770070291187,-520.54894962,0.00043287,120]
[404347179,1770070291196,-500.0,0.00043287,120]
[404347180,1770070291206,-517.47957477,0.00043287,120]
[404347181,1770070291215,-500.0,0.00043287,120]
[404347182,1770070291224,-500.0,0.00043287,120]
[404347183,1770070291238,-500.0,0.00043287,120]
[404347184,1770070291247,-500.0,0.00043287,120]
[404347185,1770070291256,-539.81193942,0.00043287,120]
[404347186,1770070291265,-517.69711383,0.00043287,120]
[404347187,1770070291275,-500.0,0.00043287,120]
[404347188,1770070291284,-500.0,0.00043287,120]
[404347189,1770070291293,-500.0,0.00043287,120]
[404347190,1770070291302,-500.0,0.00043287,120]
[404347191,1770070291312,-508.84666811,0.00043287,120]
[404347192,1770070291322,-500.0,0.00043287,120]
[404347193,1770070291331,-500.0,0.00043287,120]
[404347194,1770070291341,-504.38852828,0.00043287,120]
[404347195,1770070291350,-506.81188168,0.00043287,120]
[404347196,1770070291359,-521.03387011,0.00043287,120]
[404347197,1770070291368,-514.94468212,0.00043287,120]
[404347198,1770070291378,-500.0,0.00043287,120]
[404347199,1770070291387,-500.0,0.00043287,120]
[404347200,1770070291397,-500.0,0.00043287,120]
[404347201,1770070291406,-523.7968951,0.00043287,120]
[404347202,1770070291415,-514.36370547,0.00043287,120]
[404347203,1770070291425,-562.58185832,0.00043287,120]
[404347204,1770070291434,-500.0,0.00043287,120]
[404347205,1770070291445,-500.0,0.00043287,120]
[404347206,1770070291454,-500.0,0.00043287,120]
[404347207,1770070291463,-500.0,0.00043287,120]
[404347208,1770070291473,-500.0,0.00043287,120]
[404347209,1770070291482,-500.0,0.00043287,120]
[404347210,1770070291493,-586.68928773,0.00043287,120]
[404347211,1770070291502,-525.082118,0.00043287,120]
[404347212,1770070291511,-514.76770506,0.00043287,120]
[404347213,1770070291521,-500.0,0.00043287,120]
[404347214,1770070291530,-501.10042735,0.00043287,120]
[404347215,1770070291540,-500.0,0.00043287,120]
[404347216,1770070291549,-523.92287097,0.00043287,120]
[404347217,1770070291559,-500.0,0.00043287,120]
[404347218,1770070291568,-500.0,0.00043287,120]
[404347219,1770070291577,-557.28140782,0.00043287,120]
[404347220,1770070291587,-506.89866638,0.00043287,120]
[404347221,1770070291596,-607.76254993,0.00043287,120]
[404347222,1770070291606,-500.0,0.00043287,120]
[404347223,1770070291615,-466.279874,0.00043287,120]
[404347224,1770070291625,-514.13116231,0.00043287,120]
[404347225,1770070291634,-506.96469112,0.00043287,120]
[404347226,1770070291644,-500.0,0.00043287,120]
[404347227,1770070291653,-519.59267765,0.00043287,120]
[404347228,1770070291663,-500.0,0.00043287,120]
[404347229,1770070291672,-511.00180901,0.00043287,120]
[404347230,1770070291681,-244.54010959,0.00043287,120]
[404347231,1770070291691,-510.64074323,0.00043287,120]
[404347232,1770070291700,-500.0,0.00043287,120]
[404347233,1770070291710,-570.4272024,0.00043287,120]
[404347234,1770070291719,-500.0,0.00043287,120]
[404347235,1770070291728,-572.24458542,0.00043287,120]
[404347236,1770070291737,-500.0,0.00043287,120]
[404347237,1770070291747,-500.0,0.00043287,120]
[404347238,1770070291756,-500.0,0.00043287,120]
[404347239,1770070291766,-509.33100356,0.00043287,120]
[404347240,1770070291775,-500.0,0.00043287,120]
[404347241,1770070291785,-508.98266602,0.00043287,120]
[404347242,1770070291794,-518.19862076,0.00043287,120]
[404347243,1770070291804,-511.54644625,0.00043287,120]
[404347244,1770070291813,-500.0,0.00043287,120]
[404347245,1770070291823,-539.36535863,0.00043287,120]
[404347246,1770070291833,-545.41393121,0.00043287,120]
[404347247,1770070291842,-500.0,0.00043287,120]
[404347248,1770070291851,-500.0,0.00043287,120]
[404347249,1770070291860,-500.0,0.00043287,120]
[404347250,1770070291869,-500.0,0.00043287,120]
[404347251,1770070291878,-569.72524411,0.00043287,120]
[404347252,1770070291887,-500.0,0.00043287,120]
[404347253,1770070291896,-500.0,0.00043287,120]
[404347254,1770070291906,-500.0,0.00043287,2]
[404347255,1770070291915,-500.0,0.00043287,120]
[404347256,1770070291925,-500.0,0.00043287,2]
[404347257,1770070291934,-500.0,0.00043287,120]
[404347258,1770070291944,-500.0,0.00043287,2]
[404347259,1770070291953,-500.0,0.00043287,120]
[404347260,1770070291963,-500.0,0.00043287,120]
[404347261,1770070291972,-500.0,0.00043287,2]
[404347262,1770070291981,-500.0,0.00043287,120]
[404347263,1770070291991,-493.07387427,0.00043287,120]
[404347264,1770070292000,-500.0,0.00043287,2]
[404347265,1770070292009,-500.0,0.00043287,120]
[404347266,1770070292019,-500.0,0.00043287,2]
[404347267,1770070292029,-500.0,0.00043287,120]
[404347268,1770070292040,-529.39299295,0.00043287,120]
[404347269,1770070292051,-510.33871653,0.00043287,2]
[404347270,1770070292060,-583.94225252,0.00043287,120]
[404347271,1770070292070,-500.0,0.00043287,120]
[404347272,1770070292080,-500.17697635,0.00043287,120]
[404347273,1770070292091,-593.89957805,0.00043287,120]
[404347274,1770070292101,-500.0,0.00043287,120]
[404347275,1770070292111,-632.16985982,0.00043287,120]
[404347276,1770070292120,-507.57994438,0.00043287,120]
[404347277,1770070292130,-527.05712243,0.00043287,120]
[404347278,1770070292139,-500.0,0.00043287,120]
[404347279,1770070292148,-516.3290588,0.00043287,120]
[404347280,1770070292157,-500.0,0.00043287,120]
[404347281,1770070292166,-500.0,0.00043287,120]
[404347282,1770070292175,-533.85207674,0.00043287,120]